fUST/lending_fUST_20241229
["ID","MTS","AMOUNT","RATE_DAILY","PERIOD"]
[347032796,1735476646526,-500.0,0.00010616,2]
[347032799,1735476646536,-290.71,0.00010616,2]
[347032801,1735476646546,-500.0,0.00010616,2]
[347032804,1735476646557,-500.0,0.00010616,2]
[347032807,1735476646567,-500.0,0.00010616,2]
[347032810,1735476646576,-16322.71,0.00010616,2]
[347032813,1735476646586,-537.08,0.00010616,2]
[347032815,1735476646596,-500.0,0.00010616,2]
[347032817,1735476646605,-819.38,0.00010616,2]
[347032818,1735476646614,-502.3,0.00010616,2]
[347032821,1735476646625,-746.11,0.00010616,2]
[347032823,1735476646635,-641.62,0.00010616,2]
[347032825,1735476646644,-1561.53,0.00010616,2]
[347032827,1735476646654,-500.0,0.00010616,2]
[347032829,1735476646663,-500.0,0.00010616,2]
[347032831,1735476646672,-500.0,0.00010616,2]
[347032833,1735476646682,-500.0,0.00010616,2]
[347032835,1735476646691,-500.0,0.00010616,2]
[347032837,1735476646700,-500.0,0.00010616,2]
[347032839,1735476646709,-632.12,0.00010616,2]
[347032841,1735476646718,-500.0,0.00010616,2]
[347032843,1735476646727,-500.0,0.00010616,2]
[347032845,1735476646736,-500.0,0.00010616,2]
[347032846,1735476646747,-500.0,0.00010616,2]
[347032848,1735476646756,-909.81,0.00010616,2]
[347032851,1735476646766,-500.0,0.00010616,2]
[347032853,1735476646775,-637.37,0.00010616,2]
[347032855,1735476646785,-500.0,0.00010616,2]
[347032856,1735476646794,-1352.43,0.00010616,2]
[347032859,1735476646804,-284.21704399,0.00010616,2]
[347032860,1735476646813,-505.51,0.00010616,2]
[347032862,1735476646824,-500.0,0.00010616,2]
[347032865,1735476646833,-500.0,0.00010616,2]
[347032867,1735476646842,-600.32,0.00010616,2]
[347032869,1735476646851,-245.3991037,0.00010616,2]
[347032870,1735476646861,-500.0,0.00010616,2]
[347032872,1735476646870,-500.0,0.00010616,2]
[347032875,1735476646879,-500.0,0.00010616,2]
[347032877,1735476646889,-500.0,0.00010617,2]
[347032878,1735476646898,-500.0,0.00010617,2]
[347032881,1735476646907,-500.0,0.00010617,2]
[347032882,1735476646917,-506.92,0.00010617,2]
[347032885,1735476646926,-596.83,0.00010617,2]
[347032887,1735476646935,-500.0,0.00010617,2]
[347032888,1735476646944,-500.0,0.00010617,2]
[347032890,1735476646954,-500.0,0.00010617,2]
[347032893,1735476646964,-500.0,0.00010617,2]
[347032895,1735476646973,-500.0,0.00010617,2]
[347032896,1735476646983,-500.0,0.00010617,2]
[347032898,1735476646991,-500.0,0.00010617,2]
[347032900,1735476647000,-500.0,0.00010617,2]
[347032902,1735476647010,-500.0,0.00010617,2]
[347032904,1735476647019,-500.0,0.00010617,2]
[347032906,1735476647029,-2153.24,0.00010617,2]
[347032909,1735476647038,-500.0,0.00010617,2]
[347032911,1735476647048,-500.0,0.00010617,2]
[347032913,1735476647057,-551.1,0.00010617,2]
[347032914,1735476647066,-500.0,0.00010617,2]
[347032917,1735476647076,-500.0,0.00010617,2]
[347032918,1735476647085,-500.0,0.00010617,2]
[347032920,1735476647094,-500.0,0.00010617,2]
[347032922,1735476647103,-554.43,0.00010617,2]
[347032924,1735476647112,-500.0,0.00010617,2]
[347032926,1735476647122,-500.0,0.00010617,2]
[347032928,1735476647132,-520.83,0.00010617,2]
[347032930,1735476647141,-575.43451119,0.00010617,2]
[347032932,1735476647150,-500.0,0.00010617,2]
[347032934,1735476647159,-500.0,0.00010617,2]
[347032936,1735476647168,-500.0,0.00010617,2]
[347032938,1735476647177,-524.07,0.00010617,2]
[347032940,1735476647186,-500.0,0.00010618,2]
[347032942,1735476647195,-500.0,0.00010618,2]
[347032944,1735476647204,-500.0,0.00010618,2]
[347032946,1735476647214,-500.0,0.00010618,2]
[347032948,1735476647223,-500.0,0.00010618,2]
[347032950,1735476647232,-500.0,0.00010618,2]
[347032952,1735476647241,-3022.22,0.00010618,2]
[347032954,1735476647251,-500.0,0.00010618,2]
[347032956,1735476647259,-2975.18,0.00010619,2]
[347032958,1735476647269,-621.62,0.00010619,2]
[347032960,1735476647279,-2892.58,0.0001062,2]
[347032962,1735476647288,-500.0,0.0001089,2]
[347032964,1735476647297,-500.0,0.0001089,2]
[347032966,1735476647306,-500.0,0.0001089,2]
[347032968,1735476647315,-500.0,0.0001089,2]
[347032970,1735476647324,-500.0,0.0001089,2]
[347032972,1735476647333,-500.0,0.0001089,2]
[347032974,1735476647344,-500.0,0.0001089,2]
[347032976,1735476647353,-712.64,0.0001089,2]
[347032978,1735476647363,-500.0,0.0001089,2]
[347032980,1735476647372,-500.0,0.0001089,2]
[347032982,1735476647382,-500.0,0.0001089,2]
[347032984,1735476647392,-500.0,0.0001089,2]
[347032992,1735476647461,-500.0,0.0001089,2]
[347032994,1735476647472,-16322.71,0.0001089,2]
[347032996,1735476647481,-537.08,0.0001089,2]
[347032998,1735476647491,-500.0,0.0001089,2]
[347033000,1735476647501,-819.38,0.0001089,2]
[347033003,1735476647511,-502.3,0.0001089,2]
[347033005,1735476647521,-746.11,0.0001089,2]
[347033007,1735476647531,-641.62,0.0001089,2]
[347033009,1735476647541,-1561.53,0.0001089,2]
[347033011,1735476647551,-500.0,0.0001089,2]
[347033013,1735476647561,-500.0,0.0001089,2]
[347033015,1735476647575,-500.0,0.0001089,2]
[347033017,1735476647585,-500.0,0.0001089,2]
[347033019,1735476647594,-535.3919373,0.0001089,2]
[347033021,1735476647604,-500.0,0.0001089,2]
[347033023,1735476647614,-632.12,0.0001089,2]
[347033025,1735476647623,-500.0,0.0001089,2]
[347033027,1735476647632,-500.0,0.0001089,2]
[347033029,1735476647641,-500.0,0.0001089,2]
[347033031,1735476647651,-500.0,0.0001089,2]
[347033033,1735476647660,-909.81,0.0001089,2]
[347033035,1735476647669,-151.0,0.0001089,2]
[347033037,1735476647680,-500.0,0.0001089,2]
[347033039,1735476647689,-637.37,0.0001089,2]
[347033041,1735476647698,-500.0,0.0001089,2]
[347033043,1735476647707,-1352.43,0.0001089,2]
[347033045,1735476647717,-505.51,0.0001089,2]
[347033047,1735476647726,-362.26000369,0.0001089,2]
[347033049,1735476647735,-500.0,0.0001089,2]
[347033051,1735476647746,-600.32,0.0001089,2]
[347033053,1735476647755,-500.0,0.0001089,2]
[347033055,1735476647764,-500.0,0.00010891,2]
[347033057,1735476647773,-500.0,0.00010891,2]
[347033059,1735476647783,-500.0,0.00010891,2]
[347033061,1735476647792,-506.92,0.00010891,2]
[347033063,1735476647803,-500.0,0.00010891,2]
[347033065,1735476647812,-500.0,0.00010891,2]
[347033067,1735476647821,-500.0,0.00010891,2]
[347033069,1735476647832,-500.0,0.00010891,2]
[347033071,1735476647841,-500.0,0.00010891,2]
[347033073,1735476647851,-500.0,0.00010891,2]
[347033075,1735476647860,-526.46437524,0.00010891,2]
[347033077,1735476647869,-500.0,0.00010891,2]
[347033078,1735476647879,-500.0,0.00010891,2]
[347033079,1735476647888,-500.0,0.00010891,2]
[347033080,1735476647897,-2153.24,0.00010891,2]
[347033081,1735476647906,-500.0,0.00010891,2]
[347033082,1735476647916,-500.0,0.00010891,2]
[347033083,1735476647925,-551.1,0.00010891,2]
[347033084,1735476647935,-500.0,0.00010891,2]
[347033085,1735476647945,-500.0,0.00010891,2]
[347033086,1735476647954,-500.0,0.00010891,2]
[347033087,1735476647964,-500.0,0.00010891,2]
[347033088,1735476647974,-554.43,0.00010891,2]
[347033089,1735476647983,-500.0,0.00010891,2]
[347033090,1735476647993,-500.0,0.00010891,2]
[347033092,1735476648002,-520.83,0.00010891,2]
[347033094,1735476648012,-500.0,0.00010891,2]
[347033096,1735476648022,-500.0,0.00010891,2]
[347033098,1735476648031,-500.0,0.00010891,2]
[347033100,1735476648041,-524.07,0.00010891,2]
[347033102,1735476648051,-500.0,0.00010892,2]
[347033104,1735476648060,-500.0,0.00010892,2]
[347033106,1735476648069,-500.0,0.00010892,2]
[347033108,1735476648079,-500.0,0.00010892,2]
[347033110,1735476648088,-500.0,0.00010892,2]
[347033112,1735476648098,-500.0,0.00010892,2]
[347033114,1735476648107,-3022.22,0.00010892,2]
[347033116,1735476648116,-2975.18,0.00010893,2]
[347033118,1735476648127,-621.62,0.00010893,2]
[347033120,1735476648136,-2892.58,0.00010894,2]
[347033122,1735476648146,-151.945805,0.00010959,2]
[347033124,1735476648155,-151.0,0.00010959,2]
[347033126,1735476648165,-168.029678,0.00010959,2]
[347033128,1735476648175,-168.029678,0.00010959,2]
[347033130,1735476648184,-382.696265,0.00010959,2]
[347033132,1735476648193,-382.696265,0.00010959,2]
[347033134,1735476648203,-204.187933,0.00010959,2]
[347033136,1735476648212,-151.0,0.00010959,2]
[347033138,1735476648221,-416.450852,0.00010959,2]
[347033140,1735476648230,-151.0,0.00010959,2]
[347033142,1735476648239,-416.450852,0.00010959,2]
[347033144,1735476648249,-273.829073,0.00010959,2]
[347033146,1735476648258,-1105.459094,0.00010959,2]
[347033148,1735476648268,-1105.459094,0.00010959,2]
[347033150,1735476648278,-217.596324,0.00010959,2]
[347033152,1735476648288,-217.596324,0.00010959,2]
[347033154,1735476648298,-151.0,0.00010959,2]
[347033156,1735476648308,-829.700736,0.00010959,2]
[347033158,1735476648317,-829.700736,0.00010959,2]
[347033160,1735476648327,-151.0,0.00010959,2]
[347033162,1735476648336,-151.0,0.00010959,2]
[347033164,1735476648346,-151.0,0.00010959,2]
[347033166,1735476648355,-500.0,0.00011164,2]
[347033168,1735476648364,-500.0,0.00011164,2]
[347033170,1735476648374,-500.0,0.00011164,2]
[347033172,1735476648384,-500.0,0.00011164,2]
[347033175,1735476648395,-151.0,0.00011164,2]
[347033177,1735476648404,-151.0,0.00011164,2]
[347033179,1735476648417,-500.0,0.00011164,2]
[347033181,1735476648427,-500.0,0.00011164,2]
[347033183,1735476648437,-712.64,0.00011164,2]
[347033185,1735476648446,-500.0,0.00011164,2]
[347033187,1735476648455,-500.0,0.00011164,2]
[347033189,1735476648465,-500.0,0.00011164,2]
[347033191,1735476648475,-500.0,0.00011164,2]
[347033192,1735476648484,-500.0,0.00011164,2]
[347033195,1735476648493,-16322.71,0.00011164,2]
[347033197,1735476648503,-537.08,0.00011164,2]
[347033198,1735476648512,-500.0,0.00011164,2]
[347033201,1735476648522,-819.38,0.00011164,2]
[347033202,1735476648532,-502.3,0.00011164,2]
[347033205,1735476648542,-746.11,0.00011164,2]
[347033206,1735476648551,-641.62,0.00011164,2]
[347033208,1735476648561,-1561.53,0.00011164,2]
[347033210,1735476648570,-500.0,0.00011164,2]
[347033213,1735476648580,-500.0,0.00011164,2]
[347033214,1735476648590,-500.0,0.00011164,2]
[347033217,1735476648599,-500.0,0.00011164,2]
[347033219,1735476648609,-500.0,0.00011164,2]
[347033221,1735476648619,-632.12,0.00011164,2]
[347033223,1735476648629,-500.0,0.00011164,2]
[347033225,1735476648638,-500.0,0.00011164,2]
[347033227,1735476648648,-500.0,0.00011164,2]
[347033229,1735476648657,-500.0,0.00011164,2]
[347033237,1735476648727,-909.81,0.00011164,2]
[347033239,1735476648737,-500.0,0.00011164,2]
[347033241,1735476648750,-637.37,0.00011164,2]
[347033243,1735476648760,-500.0,0.00011164,2]
[347033245,1735476648769,-1352.43,0.00011164,2]
[347033247,1735476648779,-505.51,0.00011164,2]
[347033249,1735476648790,-500.0,0.00011164,2]
[347033251,1735476648799,-600.32,0.00011164,2]
[347033253,1735476648809,-500.0,0.00011164,2]
[347033255,1735476648820,-500.0,0.00011165,2]
[347033257,1735476648831,-500.0,0.00011165,2]
[347033259,1735476648841,-506.92,0.00011165,2]
[347033261,1735476648850,-500.0,0.00011165,2]
[347033263,1735476648860,-500.0,0.00011165,2]
[347033265,1735476648870,-500.0,0.00011165,2]
[347033267,1735476648880,-500.0,0.00011165,2]
[347033269,1735476648889,-550.69777991,0.00011165,2]
[347033271,1735476648899,-500.0,0.00011165,2]
[347033273,1735476648908,-500.0,0.00011165,2]
[347033275,1735476648917,-500.0,0.00011165,2]
[347033277,1735476648927,-500.0,0.00011165,2]
[347033279,1735476648937,-2153.24,0.00011165,2]
[347033281,1735476648947,-500.0,0.00011165,2]
[347033283,1735476648956,-500.0,0.00011165,2]
[347033285,1735476648965,-551.1,0.00011165,2]
[347033287,1735476648975,-500.0,0.00011165,2]
[347033289,1735476648985,-500.0,0.00011165,2]
[347033291,1735476648995,-500.0,0.00011165,2]
[347033293,1735476649004,-151.0,0.00011165,2]
[347033295,1735476649014,-500.0,0.00011165,2]
[347033297,1735476649023,-554.43,0.00011165,2]
[347033299,1735476649033,-151.0,0.00011165,2]
[347033301,1735476649043,-500.0,0.00011165,2]
[347033303,1735476649052,-586.821921,0.00011165,2]
[347033305,1735476649061,-586.821921,0.00011165,2]
[347033307,1735476649070,-500.0,0.00011165,2]
[347033309,1735476649080,-520.83,0.00011165,2]
[347033311,1735476649090,-500.0,0.00011165,2]
[347033313,1735476649099,-3022.22,0.00011165,2]
[347033315,1735476649108,-500.0,0.00011165,2]
[347033317,1735476649118,-500.0,0.00011165,2]
[347033319,1735476649128,-524.07,0.00011165,2]
[347033321,1735476649138,-500.0,0.00011166,2]
[347033323,1735476649147,-500.0,0.00011166,2]
[347033325,1735476649157,-500.0,0.00011166,2]
[347033327,1735476649167,-500.0,0.00011166,2]
[347033329,1735476649176,-500.0,0.00011166,2]
[347033331,1735476649185,-500.0,0.00011166,2]
[347033333,1735476649195,-2975.18,0.00011167,2]
[347033335,1735476649204,-621.62,0.00011167,2]
[347033338,1735476649214,-2892.58,0.00011168,2]
[347033340,1735476649224,-587.0,0.00011185,2]
[347033341,1735476649233,-352.4553754,0.00011342,2]
[347033343,1735476649243,-194.16,0.00011438,2]
[347033346,1735476649253,-159.520838,0.00011438,2]
[347033348,1735476649262,-151.0,0.00011438,2]
[347033349,1735476649272,-151.0,0.00011438,2]
[347033351,1735476649281,-208.273742,0.00011438,2]
[347033353,1735476649290,-505.26349,0.00011438,2]
[347033355,1735476649300,-505.26349,0.00011438,2]
[347033357,1735476649310,-500.0,0.00011438,2]
[347033360,1735476649320,-500.0,0.00011438,2]
[347033361,1735476649329,-156.995781,0.00011438,2]
[347033364,1735476649339,-156.995781,0.00011438,2]
[347033365,1735476649348,-500.0,0.00011438,2]
[347033367,1735476649358,-500.0,0.00011438,2]
[347033369,1735476649368,-194.75060377,0.00011438,2]
[347033372,1735476649378,-712.64,0.00011438,2]
[347033373,1735476649387,-500.0,0.00011438,2]
[347033376,1735476649398,-500.0,0.00011438,2]
[347033378,1735476649408,-500.0,0.00011438,2]
[347033380,1735476649419,-500.0,0.00011438,2]
[347033382,1735476649428,-500.0,0.00011438,2]
[347033383,1735476649438,-16322.71,0.00011438,2]
[347033386,1735476649448,-537.08,0.00011438,2]
[347033388,1735476649457,-500.0,0.00011438,2]
[347033389,1735476649467,-819.38,0.00011438,2]
[347033391,1735476649477,-502.3,0.00011438,2]
[347033394,1735476649487,-746.11,0.00011438,2]
[347033395,1735476649496,-641.62,0.00011438,2]
[347033398,1735476649506,-1561.53,0.00011438,2]
[347033399,1735476649515,-500.0,0.00011438,2]
[347033401,1735476649525,-500.0,0.00011438,2]
[347033403,1735476649534,-500.0,0.00011438,2]
[347033406,1735476649544,-500.0,0.00011438,2]
[347033408,1735476649554,-500.0,0.00011438,2]
[347033410,1735476649563,-632.12,0.00011438,2]
[347033411,1735476649573,-392.34012609,0.00011438,2]
[347033414,1735476649582,-500.0,0.00011438,2]
[347033415,1735476649592,-500.0,0.00011438,2]
[347033417,1735476649601,-500.0,0.00011438,2]
[347033420,1735476649611,-909.81,0.00011438,2]
[347033422,1735476649621,-500.0,0.00011438,2]
[347033424,1735476649631,-637.37,0.00011438,2]
[347033426,1735476649641,-500.0,0.00011438,2]
[347033428,1735476649652,-1352.43,0.00011438,2]
[347033430,1735476649662,-505.51,0.00011438,2]
[347033432,1735476649672,-500.0,0.00011438,2]
[347033434,1735476649682,-600.32,0.00011438,2]
[347033436,1735476649692,-500.0,0.00011438,2]
[347033438,1735476649702,-151.0,0.00011439,2]
[347033440,1735476649712,-429.48,0.00011439,2]
[347033441,1735476649721,-506.92,0.00011439,2]
[347033443,1735476649731,-500.0,0.00011439,2]
[347033446,1735476649741,-500.0,0.00011439,2]
[347033448,1735476649754,-500.0,0.00011439,2]
[347033450,1735476649764,-500.0,0.00011439,2]
[347033451,1735476649774,-495.80818169,0.00011439,2]
[347033453,1735476649783,-500.0,0.00011439,2]
[347033456,1735476649794,-500.0,0.00011439,2]
[347033457,1735476649806,-500.0,0.00011439,2]
[347033460,1735476649818,-500.0,0.00011439,2]
[347033462,1735476649828,-2153.24,0.00011439,2]
[347033464,1735476649837,-500.0,0.00011439,2]
[347033465,1735476649846,-551.1,0.00011439,2]
[347033474,1735476649918,-500.0,0.00011439,2]
[347033476,1735476649928,-500.0,0.00011439,2]
[347033478,1735476649938,-500.0,0.00011439,2]
[347033480,1735476649947,-554.43,0.00011439,2]
[347033482,1735476649957,-500.0,0.00011439,2]
[347033484,1735476649967,-500.0,0.00011439,2]
[347033486,1735476649976,-520.83,0.00011439,2]
[347033488,1735476649986,-500.0,0.00011439,2]
[347033490,1735476649995,-3022.22,0.00011439,2]
[347033493,1735476650006,-500.0,0.00011439,2]
[347033494,1735476650016,-524.07,0.00011439,2]
[347033497,1735476650025,-500.0,0.0001144,2]
[347033498,1735476650035,-500.0,0.0001144,2]
[347033499,1735476650044,-500.0,0.0001144,2]
[347033500,1735476650053,-500.0,0.0001144,2]
[347033501,1735476650063,-500.0,0.0001144,2]
[347033502,1735476650072,-438.29445206,0.0001144,2]
[347033503,1735476650082,-2975.18,0.00011441,2]
[347033504,1735476650091,-621.62,0.00011441,2]
[347033505,1735476650100,-2892.58,0.00011442,2]
[347033506,1735476650109,-151.0,0.000115,2]
[347033507,1735476650119,-391.659,0.000115,2]
[347033508,1735476650129,-228.20931706,0.000115,2]
[347033509,1735476650138,-151.0,0.00011589,2]
[347033510,1735476650147,-151.0,0.00011589,2]
[347033511,1735476650157,-151.0,0.00011589,2]
[347033513,1735476650166,-151.0,0.000116,2]
[347033515,1735476650176,-151.0,0.000117,2]
[347033517,1735476650186,-500.0,0.00011712,2]
[347033519,1735476650195,-500.0,0.00011712,2]
[347033521,1735476650205,-500.0,0.00011712,2]
[347033523,1735476650216,-500.0,0.00011712,2]
[347033525,1735476650225,-712.64,0.00011712,2]
[347033527,1735476650234,-155.04,0.00011712,2]
[347033529,1735476650244,-500.0,0.00011712,2]
[347033531,1735476650254,-500.0,0.00011712,2]
[347033533,1735476650263,-500.0,0.00011712,2]
[347033534,1735476650272,-16322.71,0.00011712,2]
[347033536,1735476650282,-537.08,0.00011712,2]
[347033539,1735476650292,-500.0,0.00011712,2]
[347033541,1735476650301,-819.38,0.00011712,2]
[347033542,1735476650311,-416.450852,0.00011712,2]
[347033544,1735476650321,-151.0,0.00011712,2]
[347033546,1735476650332,-502.3,0.00011712,2]
[347033548,1735476650340,-746.11,0.00011712,2]
[347033550,1735476650350,-416.450852,0.00011712,2]
[347033553,1735476650359,-641.62,0.00011712,2]
[347033555,1735476650369,-1561.53,0.00011712,2]
[347033557,1735476650379,-500.0,0.00011712,2]
[347033558,1735476650388,-500.0,0.00011712,2]
[347033561,1735476650399,-500.0,0.00011712,2]
[347033563,1735476650409,-500.0,0.00011712,2]
[347033565,1735476650418,-500.0,0.00011712,2]
[347033566,1735476650428,-1105.459094,0.00011712,2]
[347033569,1735476650438,-1105.459094,0.00011712,2]
[347033571,1735476650447,-632.12,0.00011712,2]
[347033573,1735476650457,-217.596324,0.00011712,2]
[347033574,1735476650466,-217.596324,0.00011712,2]
[347033576,1735476650476,-500.0,0.00011712,2]
[347033578,1735476650485,-500.0,0.00011712,2]
[347033580,1735476650495,-829.700736,0.00011712,2]
[347033582,1735476650504,-500.0,0.00011712,2]
[347033584,1735476650514,-909.81,0.00011712,2]
[347033586,1735476650523,-829.700736,0.00011712,2]
[347033588,1735476650532,-174.51153155,0.00011712,2]
[347033590,1735476650542,-637.37,0.00011712,2]
[347033592,1735476650551,-1352.43,0.00011712,2]
[347033594,1735476650560,-505.51,0.00011712,2]
[347033596,1735476650569,-500.0,0.00011712,2]
[347033598,1735476650578,-600.32,0.00011712,2]
[347033600,1735476650588,-500.0,0.00011712,2]
[347033602,1735476650597,-151.0,0.00011713,2]
[347033604,1735476650606,-151.0,0.00011713,2]
[347033606,1735476650616,-506.92,0.00011713,2]
[347033608,1735476650625,-500.0,0.00011713,2]
[347033610,1735476650635,-500.0,0.00011713,2]
[347033612,1735476650644,-500.0,0.00011713,2]
[347033614,1735476650653,-500.0,0.00011713,2]
[347033616,1735476650663,-500.0,0.00011713,2]
[347033618,1735476650673,-500.0,0.00011713,2]
[347033620,1735476650681,-500.0,0.00011713,2]
[347033622,1735476650690,-2153.24,0.00011713,2]
[347033624,1735476650700,-500.0,0.00011713,2]
[347033626,1735476650710,-551.1,0.00011713,2]
[347033628,1735476650720,-500.0,0.00011713,2]
[347033630,1735476650729,-500.0,0.00011713,2]
[347033632,1735476650738,-500.0,0.00011713,2]
[347033634,1735476650750,-554.43,0.00011713,2]
[347033636,1735476650760,-500.0,0.00011713,2]
[347033638,1735476650769,-151.0,0.00011713,2]
[347033640,1735476650778,-500.0,0.00011713,2]
[347033642,1735476650788,-520.83,0.00011713,2]
[347033644,1735476650797,-500.0,0.00011713,2]
[347033646,1735476650806,-500.0,0.00011713,2]
[347033648,1735476650816,-524.07,0.00011713,2]
[347033650,1735476650826,-500.0,0.00011714,2]
[347033652,1735476650837,-181.77235031,0.00011714,2]
[347033654,1735476650846,-500.0,0.00011714,2]
[347033656,1735476650855,-500.0,0.00011714,2]
[347033658,1735476650864,-500.0,0.00011714,2]
[347033660,1735476650874,-3022.22,0.00011714,2]
[347033662,1735476650884,-2975.18,0.00011715,2]
[347033664,1735476650893,-621.62,0.00011715,2]
[347033666,1735476650902,-2892.58,0.00011716,2]
[347033668,1735476650913,-168.029678,0.00011716,2]
[347033676,1735476650922,-168.029678,0.00011716,2]
[347033678,1735476650984,-382.696265,0.00011716,2]
[347033680,1735476650994,-382.696265,0.00011716,2]
[347033682,1735476651003,-3022.22,0.00011729,2]
[347033684,1735476651012,-9567.38101525,0.00011761,2]
[347033686,1735476651021,-6101.96351348,0.000118,2]
[347033688,1735476651030,-151.0,0.000118,2]
[347033690,1735476651039,-349.4688288,0.0001188,2]
[347033692,1735476651048,-151.0,0.000119,2]
[347033694,1735476651057,-250.69798575,0.000119,2]
[347033696,1735476651066,-500.0,0.00011973,2]
[347033698,1735476651075,-500.0,0.00011986,2]
[347033700,1735476651084,-500.0,0.00011986,2]
[347033702,1735476651094,-500.0,0.00011986,2]
[347033704,1735476651103,-500.0,0.00011986,2]
[347033706,1735476651112,-712.64,0.00011986,2]
[347033708,1735476651122,-500.0,0.00011986,2]
[347033710,1735476651131,-500.0,0.00011986,2]
[347033712,1735476651139,-500.0,0.00011986,2]
[347033714,1735476651148,-16322.71,0.00011986,2]
[347033716,1735476651158,-537.08,0.00011986,2]
[347033718,1735476651167,-500.0,0.00011986,2]
[347033720,1735476651176,-819.38,0.00011986,2]
[347033722,1735476651185,-502.3,0.00011986,2]
[347033724,1735476651194,-746.11,0.00011986,2]
[347033726,1735476651203,-641.62,0.00011986,2]
[347033728,1735476651212,-1561.53,0.00011986,2]
[347033730,1735476651221,-500.0,0.00011986,2]
[347033732,1735476651230,-500.0,0.00011986,2]
[347033734,1735476651239,-500.0,0.00011986,2]
[347033736,1735476651248,-500.0,0.00011986,2]
[347033738,1735476651257,-500.0,0.00011986,2]
[347033739,1735476651266,-632.12,0.00011986,2]
[347033741,1735476651274,-500.0,0.00011986,2]
[347033743,1735476651284,-500.0,0.00011986,2]
[347033745,1735476651294,-500.0,0.00011986,2]
[347033747,1735476651303,-909.81,0.00011986,2]
[347033749,1735476651312,-637.37,0.00011986,2]
[347033752,1735476651322,-1352.43,0.00011986,2]
[347033753,1735476651331,-505.51,0.00011986,2]
[347033755,1735476651340,-247.08959609,0.00011986,2]
[347033757,1735476651349,-600.32,0.00011986,2]
[347033759,1735476651360,-500.0,0.00011986,2]
[347033761,1735476651369,-506.92,0.00011987,2]
[347033763,1735476651378,-500.0,0.00011987,2]
[347033765,1735476651387,-500.0,0.00011987,2]
[347033767,1735476651397,-500.0,0.00011987,2]
[347033769,1735476651406,-151.0,0.00011987,2]
[347033771,1735476651415,-151.0,0.00011987,2]
[347033773,1735476651424,-500.0,0.00011987,2]
[347033775,1735476651434,-500.0,0.00011987,2]
[347033777,1735476651443,-500.0,0.00011987,2]
[347033779,1735476651453,-2153.24,0.00011987,2]
[347033781,1735476651463,-500.0,0.00011987,2]
[347033783,1735476651471,-551.1,0.00011987,2]
[347033785,1735476651480,-500.0,0.00011987,2]
[347033787,1735476651490,-151.0,0.00011987,2]
[347033789,1735476651499,-500.0,0.00011987,2]
[347033791,1735476651508,-440.426877,0.00011987,2]
[347033793,1735476651517,-554.43,0.00011987,2]
[347033795,1735476651526,-423.38442397,0.00011987,2]
[347033797,1735476651535,-586.821921,0.00011987,2]